fUSD/lending_fUSD_20260606
["ID","MTS","AMOUNT","RATE_DAILY","PERIOD"]
[424242296,1780692633000,-150.0,0.00013939,2]
[424242294,1780692633000,-3862.2699966,0.00013932,2]
[424242299,1780692633000,-169.62,0.00013959,2]
[424242300,1780692633000,-169.62,0.00013959,2]
[424242303,1780692633000,-166.66,0.00013973,2]
[424242304,1780692633000,-150.0,0.00013987,2]
[424242302,1780692633000,-150.0,0.00013971,2]
[424242307,1780692633000,-150.0,0.00013987,2]
[424242377,1780692634000,-151.0,0.00014378,2]
[424242381,1780692634000,-150.0,0.0001439,2]
[424242387,1780692634000,-150.0,0.00014422,2]
[424242379,1780692634000,-151.0,0.00014378,2]
[424242386,1780692634000,-3862.2699966,0.00014416,2]
[424242371,1780692634000,-150.0,0.00014331,2]
[424242375,1780692634000,-150.0,0.00014374,2]
[424242372,1780692634000,-150.0,0.00014342,2]
[424242370,1780692634000,-150.0,0.00014326,2]
[424242376,1780692634000,-150.0,0.00014376,2]
[424242388,1780692634000,-150.0,0.00014424,2]
[424242366,1780692634000,-1100.0,0.000143,5]
[424242378,1780692634000,-151.0,0.00014378,2]
[424242382,1780692634000,-2000.0,0.000144,2]
[424242397,1780692634000,-2000.0,0.0001445,2]
[424242389,1780692634000,-150.0,0.00014431,2]
[424242385,1780692634000,-150.0,0.00014406,2]
[424242384,1780692634000,-1400.0,0.000144,5]
[424242383,1780692634000,-2000.0,0.000144,2]
[424242390,1780692634000,-150.0,0.00014438,2]
[424242393,1780692634000,-500.0,0.00014449,2]
[424242394,1780692634000,-500.0,0.00014449,2]
[424242400,1780692634000,-2000.0,0.0001445,2]
[424242395,1780692634000,-500.0,0.00014449,2]
[424242396,1780692634000,-2000.0,0.0001445,2]
[424242398,1780692634000,-2000.0,0.0001445,2]
[424242399,1780692634000,-2000.0,0.0001445,2]
[424242373,1780692634000,-150.0,0.00014358,2]
[424242380,1780692634000,-166.66,0.00014384,2]
[424242374,1780692634000,-350.0,0.00014371,2]
[424242341,1780692634000,-819.648392,0.000142,2]
[424242368,1780692634000,-150.0,0.0001432,2]
[424242391,1780692634000,-500.0,0.00014449,2]
[424242340,1780692634000,-819.648392,0.000142,2]
[424242344,1780692634000,-151.0,0.000142,2]
[424242351,1780692634000,-150.0,0.00014209,2]
[424242349,1780692634000,-151.0,0.00014209,2]
[424242342,1780692634000,-819.648392,0.000142,2]
[424242348,1780692634000,-151.0,0.00014209,2]
[424242350,1780692634000,-151.0,0.00014209,2]
[424242339,1780692634000,-150.0,0.00014197,2]
[424242346,1780692634000,-151.0,0.000142,2]
[424242343,1780692634000,-819.648392,0.000142,2]
[424242347,1780692634000,-700.0,0.000142,5]
[424242345,1780692634000,-151.0,0.000142,2]
[424242367,1780692634000,-150.0,0.0001431,2]
[424242353,1780692634000,-150.0,0.00014229,2]
[424242352,1780692634000,-150.0,0.00014213,2]
[424242363,1780692634000,-150.0,0.00014293,2]
[424242355,1780692634000,-150.0,0.00014237,2]
[424242354,1780692634000,-150.0,0.00014237,2]
[424242361,1780692634000,-150.0,0.00014265,2]
[424242357,1780692634000,-350.0,0.00014243,2]
[424242360,1780692634000,-150.0,0.00014261,2]
[424242358,1780692634000,-150.0,0.00014245,2]
[424242359,1780692634000,-166.66,0.00014247,2]
[424242356,1780692634000,-150.0,0.00014237,2]
[424242364,1780692634000,-2000.0,0.000143,2]
[424242365,1780692634000,-3211.0,0.000143,2]
[424242369,1780692634000,-150.0,0.0001432,2]
[424242362,1780692634000,-150.0,0.00014277,2]
[424242392,1780692634000,-500.0,0.00014449,2]
[424242462,1780692634000,-1800.0,0.000145,5]
[424242412,1780692634000,-500.0,0.00014477,2]
[424242431,1780692634000,-500.0,0.00014477,2]
[424242436,1780692634000,-500.0,0.00014477,2]
[424242433,1780692634000,-500.0,0.00014477,2]
[424242437,1780692634000,-360.52,0.00014477,2]
[424242440,1780692634000,-151.0,0.00014478,2]
[424242443,1780692634000,-819.648392,0.0001448,2]
[424242442,1780692634000,-819.648392,0.0001448,2]
[424242444,1780692634000,-819.648392,0.0001448,2]
[424242447,1780692634000,-151.0,0.0001448,2]
[424242445,1780692634000,-819.648392,0.0001448,2]
[424242448,1780692634000,-157.975636,0.0001448,2]
[424242449,1780692634000,-200.0,0.0001448,2]
[424242441,1780692634000,-574.72044565,0.0001448,2]
[424242429,1780692634000,-500.0,0.00014477,2]
[424242446,1780692634000,-151.0,0.0001448,2]
[424242451,1780692634000,-150.0,0.00014487,2]
[424242452,1780692634000,-150.0,0.00014487,2]
[424242461,1780692634000,-151.0,0.000145,2]
[424242463,1780692634000,-150.0,0.00014503,2]
[424242454,1780692634000,-150.0,0.00014487,2]
[424242456,1780692634000,-151.0,0.00014489,2]
[424242457,1780692634000,-151.0,0.00014489,2]
[424242460,1780692634000,-151.0,0.000145,2]
[424242455,1780692634000,-151.0,0.00014489,2]
[424242464,1780692634000,-200.0,0.00014506,2]
[424242458,1780692634000,-4000.0,0.00014497,2]
[424242459,1780692634000,-151.0,0.000145,2]
[424242402,1780692634000,-150.0,0.00014455,2]
[424242450,1780692634000,-150.0,0.00014487,2]
[424242438,1780692634000,-151.0,0.00014477,2]
[424242453,1780692634000,-150.0,0.00014487,2]
[424242430,1780692634000,-298.22,0.00014477,2]
[424242408,1780692634000,-1024.96605995,0.00014477,5]
[424242439,1780692634000,-151.0,0.00014478,2]
[424242401,1780692634000,-2000.0,0.0001445,2]
[424242403,1780692634000,-372.58578916,0.00014465,2]
[424242404,1780692634000,-150.0,0.00014471,2]
[424242405,1780692634000,-151.0,0.00014474,2]
[424242407,1780692634000,-500.0,0.00014476,2]
[424242409,1780692634000,-1024.96605997,0.00014477,5]
[424242411,1780692634000,-500.0,0.00014477,2]
[424242410,1780692634000,-1024.96605997,0.00014477,5]
[424242413,1780692634000,-500.0,0.00014477,2]
[424242415,1780692634000,-500.0,0.00014477,2]
[424242422,1780692634000,-500.0,0.00014477,2]
[424242414,1780692634000,-500.0,0.00014477,2]
[424242406,1780692634000,-151.0,0.00014475,2]
[424242421,1780692634000,-500.0,0.00014477,2]
[424242435,1780692634000,-500.0,0.00014477,2]
[424242424,1780692634000,-500.0,0.00014477,2]
[424242434,1780692634000,-500.0,0.00014477,2]
[424242432,1780692634000,-500.0,0.00014477,2]
[424242428,1780692634000,-352.08,0.00014477,2]
[424242418,1780692634000,-500.0,0.00014477,2]
[424242419,1780692634000,-500.0,0.00014477,2]
[424242427,1780692634000,-500.0,0.00014477,2]
[424242423,1780692634000,-500.0,0.00014477,2]
[424242420,1780692634000,-500.0,0.00014477,2]
[424242426,1780692634000,-500.0,0.00014477,2]
[424242417,1780692634000,-500.0,0.00014477,2]
[424242425,1780692634000,-500.0,0.00014477,2]
[424242416,1780692634000,-500.0,0.00014477,2]
[424242492,1780692635000,-1000.0,0.00014597,2]
[424242489,1780692635000,-1000.0,0.00014597,2]
[424242491,1780692635000,-1000.0,0.00014597,2]
[424242498,1780692635000,-1000.0,0.00014597,2]
[424242490,1780692635000,-1000.0,0.00014597,2]
[424242488,1780692635000,-1000.0,0.00014597,2]
[424242497,1780692635000,-1000.0,0.00014597,2]
[424242496,1780692635000,-1000.0,0.00014597,2]
[424242502,1780692635000,-1000.0,0.00014597,2]
[424242493,1780692635000,-1000.0,0.00014597,2]
[424242494,1780692635000,-1000.0,0.00014597,2]
[424242501,1780692635000,-1000.0,0.00014597,2]
[424242500,1780692635000,-1000.0,0.00014597,2]
[424242503,1780692635000,-1000.0,0.00014597,2]
[424242509,1780692635000,-151.0,0.00014597,2]
[424242485,1780692635000,-1000.0,0.00014597,2]
[424242505,1780692635000,-933.12508569,0.00014597,2]
[424242495,1780692635000,-1000.0,0.00014597,2]
[424242486,1780692635000,-1000.0,0.00014597,2]
[424242467,1780692635000,-200.0,0.00014531,2]
[424242484,1780692635000,-1000.0,0.00014597,2]
[424242504,1780692635000,-66.87491431,0.00014597,2]
[424242465,1780692635000,-150.0,0.00014518,2]
[424242469,1780692635000,-150.0,0.00014542,2]
[424242466,1780692635000,-150.0,0.00014519,2]
[424242476,1780692635000,-151.0,0.00014578,2]
[424242475,1780692635000,-350.0,0.00014575,3]
[424242470,1780692635000,-150.0,0.00014551,2]
[424242472,1780692635000,-150.0,0.00014567,2]
[424242471,1780692635000,-200.0,0.00014556,2]
[424242468,1780692635000,-150.0,0.00014535,2]
[424242474,1780692635000,-1500.0,0.00014568,2]
[424242473,1780692635000,-1030.0,0.00014568,2]
[424242478,1780692635000,-150.0,0.00014583,2]
[424242477,1780692635000,-200.0,0.00014581,2]
[424242481,1780692635000,-251.93655587,0.00014597,2]
[424242479,1780692635000,-3521.0,0.00014594,5]
[424242480,1780692635000,-222.45,0.00014596,2]
[424242482,1780692635000,-151.0,0.00014597,2]
[424242483,1780692635000,-1000.0,0.00014597,2]
[424242487,1780692635000,-1000.0,0.00014597,2]
[424242506,1780692635000,-1000.0,0.00014597,2]
[424242499,1780692635000,-1000.0,0.00014597,2]
[424242508,1780692635000,-190.87519934,0.00014597,2]
[424242532,1780692635000,-150.0,0.0001468,2]
[424242536,1780692635000,-1725.0,0.000147,2]
[424242535,1780692635000,-300.0,0.000147,5]
[424242534,1780692635000,-150.0,0.00014696,2]
[424242540,1780692635000,-114.59953218,0.00014709,2]
[424242543,1780692635000,-166.67,0.00014723,2]
[424242539,1780692635000,-304.23217184,0.00014708,2]
[424242537,1780692635000,-553.0,0.00014702,2]
[424242542,1780692635000,-150.0,0.00014712,2]
[424242541,1780692635000,-35.40046782,0.00014709,2]
[424242545,1780692635000,-150.0,0.00014737,2]
[424242544,1780692635000,-150.0,0.00014728,2]
[424242547,1780692635000,-150.0,0.00014745,2]
[424242548,1780692635000,-463.30478752,0.0001476,2]
[424242546,1780692635000,-180.808887,0.00014738,2]
[424242549,1780692635000,-150.0,0.00014761,2]
[424242550,1780692635000,-819.648392,0.00014764,2]
[424242551,1780692635000,-652.54670035,0.00014764,2]
[424242507,1780692635000,-1000.0,0.00014597,2]
[424242533,1780692635000,-350.0,0.0001469,2]
[424242530,1780692635000,-350.0,0.00014664,2]
[424242538,1780692635000,-150.0,0.00014705,2]
[424242527,1780692635000,-150.0,0.00014653,2]
[424242510,1780692635000,-151.0,0.00014597,2]
[424242529,1780692635000,-150.0,0.00014664,2]
[424242511,1780692635000,-151.0,0.00014597,2]
[424242512,1780692635000,-151.0,0.00014597,2]
[424242514,1780692635000,-202.45409884,0.00014597,2]
[424242520,1780692635000,-150.0,0.00014616,2]
[424242516,1780692635000,-150.0,0.000146,2]
[424242515,1780692635000,-150.0,0.00014598,2]
[424242519,1780692635000,-150.0,0.00014612,2]
[424242517,1780692635000,-300.0,0.000146,5]
[424242513,1780692635000,-151.0,0.00014597,2]
[424242522,1780692635000,-151.0,0.00014623,2]
[424242521,1780692635000,-151.0,0.00014623,2]
[424242518,1780692635000,-150.0,0.00014612,2]
[424242531,1780692635000,-155.0,0.00014672,2]
[424242526,1780692635000,-150.0,0.00014648,2]
[424242525,1780692635000,-150.0,0.00014632,2]
[424242524,1780692635000,-1548.0,0.00014623,2]
[424242523,1780692635000,-151.0,0.00014623,2]
[424242528,1780692635000,-150.0,0.00014653,2]
[424242552,1780692637000,-6130.47546478,0.00013256,2]
[424242554,1780692637000,-910.03872159,0.00013667,2]
[424242553,1780692637000,-153.61453037,0.00013256,2]
[424242555,1780692637000,-500.0,0.00013667,2]
[424242565,1780692638000,-549.74674804,0.00013667,2]
[424242601,1780692640000,-150.0,0.00014793,2]
[424242600,1780692640000,-150.0,0.00014777,2]
[424242599,1780692640000,-179.28475899,0.00014774,2]
[424242598,1780692640000,-150.0,0.00014764,2]
[424242596,1780692640000,-151.0,0.00014764,2]
[424242595,1780692640000,-151.0,0.00014764,2]
[424242594,1780692640000,-819.6484,0.00014764,2]
[424242590,1780692640000,-1836.36215123,0.00013667,2]
[424242591,1780692640000,-2487.94237429,0.00013667,2]
[424242593,1780692640000,-819.648392,0.00014764,2]
[424242603,1780692640000,-15000.0,0.00014797,2]
[424242592,1780692640000,-167.10169165,0.00014764,2]
[424242602,1780692640000,-151.0,0.00014797,2]
[424242597,1780692640000,-167.95770391,0.00014764,2]
[424242608,1780692640000,-1132.57,0.000148,2]
[424242616,1780692640000,-755.05,0.000148,2]
[424242615,1780692640000,-755.05,0.000148,2]
[424242617,1780692640000,-755.08,0.000148,2]
[424242614,1780692640000,-755.05,0.000148,2]
[424242611,1780692640000,-1132.57,0.000148,2]
[424242613,1780692640000,-755.05,0.000148,2]
[424242604,1780692640000,-150.0,0.00014799,2]
[424242609,1780692640000,-1132.57,0.000148,2]
[424242618,1780692640000,-3828.89110963,0.000148,2]
[424242610,1780692640000,-1132.57,0.000148,2]
[424242606,1780692640000,-196.62,0.000148,2]
[424242607,1780692640000,-196.64,0.000148,2]
[424242605,1780692640000,-151.0,0.000148,2]
[424242612,1780692640000,-1132.61,0.000148,2]
[424242623,1780692643000,-151.0,0.000107,2]
[424242624,1780692643000,-1077.8,0.00014078,2]
[424242645,1780692646000,-214.856361,0.000147,2]
[424242644,1780692646000,-5206.28999515,0.00014078,2]
[424242647,1780692646000,-4139.05,0.000148,2]
[424242649,1780692646000,-90.49877265,0.000148,2]
[424242646,1780692646000,-310.15889037,0.000148,2]
[424242648,1780692646000,-4139.05,0.000148,2]
[424242650,1780692646000,-1603.89999994,0.000148,2]
[424242657,1780693740000,2000.0,0.00030134,120]
[424242666,1780693831000,-215.77576141,0.00012709,2]
[424242668,1780693831000,-620.0,0.00012841,2]
[424242665,1780693831000,-152.0,0.000123,2]
[424242667,1780693831000,-160.0,0.00012709,2]
[424242678,1780693831000,-628.80135929,0.00013111,2]
[424242670,1780693831000,-605.91,0.00013082,2]
[424242671,1780693831000,-207.62431529,0.00013111,2]
[424242672,1780693831000,-213.02050815,0.00013111,2]
[424242674,1780693831000,-500.0,0.00013111,2]
[424242677,1780693831000,-134.91856999,0.00013111,2]
[424242673,1780693831000,-500.0,0.00013111,2]
[424242675,1780693831000,-485.82539639,0.00013111,2]
[424242664,1780693831000,-332.11637927,0.00010861,2]
[424242669,1780693831000,-186.47954848,0.00013028,2]
[424242676,1780693831000,-365.08143001,0.00013111,2]
[424242680,1780693831000,-174.02,0.00013363,2]
[424242679,1780693831000,-150.0,0.00013153,2]
[424242691,1780693831000,-150.0,0.00013488,2]
[424242690,1780693831000,-154.93,0.00013428,2]
[424242686,1780693831000,-7724.44,0.00013409,2]
[424242687,1780693831000,-499.99,0.00013409,2]
[424242685,1780693831000,-9999.99,0.00013409,2]
[424242692,1780693831000,-150.0,0.00013488,2]
[424242683,1780693831000,-6058.26818179,0.00013409,2]
[424242688,1780693831000,-150.99,0.00013409,2]
[424242682,1780693831000,-8623.72992928,0.00013409,2]
[424242684,1780693831000,-739.31181821,0.00013409,2]
[424242681,1780693831000,-1376.26007072,0.00013409,2]
[424242689,1780693831000,-605.91,0.00013409,2]
[424242697,1780693832000,-268.91889383,0.00013488,2]
[424242693,1780693832000,-150.0,0.00013488,2]
[424242694,1780693832000,-150.0,0.00013488,2]
[424242696,1780693832000,-150.8923148,0.00013488,2]
[424242695,1780693832000,-150.0,0.00013488,2]
[424242700,1780693832000,-166.66,0.00013499,2]
[424242701,1780693832000,-1158.56897,0.00013514,2]
[424242699,1780693832000,-181.86753552,0.00013488,2]
[424242704,1780693832000,-99.40381575,0.00013524,2]
[424242702,1780693832000,-841.43103,0.00013514,2]
[424242703,1780693832000,-167.79157148,0.00013517,2]
[424242706,1780693832000,-1590.5757382,0.00013524,2]
[424242707,1780693832000,-513.68724988,0.00013524,2]
[424242709,1780693832000,-316334.15713847,0.00013598,2]
[424242708,1780693832000,-223.00265682,0.00013588,2]
[424242710,1780693832000,-978.54988441,0.00013598,2]
[424242698,1780693832000,-155.67737119,0.00013488,2]
[424242730,1780693839000,-1846.9,0.00013598,2]
[424242729,1780693839000,-7335.49930904,0.00013598,2]
[424242728,1780693839000,-1930.8185012,0.00013524,2]
[424242737,1780693843000,-345.253,0.00013598,2]
[424242736,1780693843000,-880.71967862,0.00013598,2]
[424242740,1780693843000,-326.91759163,0.00013598,2]
[424242735,1780693843000,-3255.0,0.00013598,2]
[424242757,1780693843000,-14667.54000764,0.00013598,2]
[424242755,1780693843000,-2463.66428051,0.00013598,2]
[424242764,1780693843000,-500.0,0.00013598,2]
[424242788,1780693843000,-21097.46,0.00013598,2]
[424242753,1780693843000,-1915.90384115,0.00013598,2]
[424242805,1780693844000,-459.14273658,0.00013598,2]
[424242801,1780693844000,-755.2166,0.00013598,2]
[424242802,1780693844000,-655.6742,0.00013598,2]
[424242810,1780693846000,-40235.31181111,0.00013598,2]
[424242812,1780693846000,-967.445,0.00013598,2]
[424242813,1780693846000,-2643.85939225,0.00013598,2]
[424242811,1780693846000,-564921.76871507,0.00013598,2]
[424242829,1780694509000,10000.0,0.0003013,120]
[424242844,1780694940000,2000.0,0.00030133,120]
[424242845,1780694946000,166.5043797,0.00030136,120]
[424242884,1780695031000,-500.0,0.00010699,2]
[424242883,1780695031000,-332.85489238,0.00010697,2]
[424242886,1780695031000,-138.39510762,0.00010699,2]
[424242887,1780695031000,-361.60489238,0.00010699,2]
[424242885,1780695031000,-500.0,0.00010699,2]
[424242901,1780695032000,-500.0,0.00010699,2]
[424242916,1780695032000,-150.0,0.00012579,2]
[424242918,1780695032000,-150.0,0.00012699,2]
[424242917,1780695032000,-700.0,0.000126,4]
[424242919,1780695032000,-500.0,0.00012699,2]
[424242908,1780695032000,-208.81996706,0.00011767,2]
[424242904,1780695032000,-500.0,0.00010699,2]
[424242905,1780695032000,-500.0,0.00010699,2]
[424242900,1780695032000,-500.0,0.00010699,2]
[424242902,1780695032000,-500.0,0.00010699,2]
[424242903,1780695032000,-500.0,0.00010699,2]
[424242906,1780695032000,-500.0,0.00010699,2]
[424242889,1780695032000,-85.79904862,0.00010699,2]
[424242898,1780695032000,-500.0,0.00010699,2]
[424242907,1780695032000,-6342.13478365,0.000107,2]
[424242897,1780695032000,-500.0,0.00010699,2]
[424242892,1780695032000,-620.69151634,0.00010699,2]
[424242896,1780695032000,-500.0,0.00010699,2]
[424242894,1780695032000,-500.0,0.00010699,2]
[424242895,1780695032000,-500.0,0.00010699,2]
[424242910,1780695032000,-204.97700922,0.00012041,2]
[424242890,1780695032000,-500.0,0.00010699,2]
[424242893,1780695032000,-500.0,0.00010699,2]
[424242891,1780695032000,-500.0,0.00010699,2]
[424242888,1780695032000,-414.20095138,0.00010699,2]
[424242899,1780695032000,-500.0,0.00010699,2]
[424242909,1780695032000,-551.09,0.00011878,2]
[424242932,1780695032000,-1400.0,0.000127,4]
[424242914,1780695032000,-167.79157148,0.00012503,2]
[424242975,1780695032000,-3667.98258065,0.00012741,2]
[424242970,1780695032000,-6552.27269673,0.00012741,2]
[424242957,1780695032000,-1000.0,0.0001274,2]
[424242954,1780695032000,-1000.0,0.0001274,2]
[424242966,1780695032000,-49116.45000736,0.00012741,2]
[424242952,1780695032000,-666.0,0.0001274,2]
[424242963,1780695032000,-500.0,0.00012741,2]
[424242950,1780695032000,-300.0,0.0001274,2]
[424242948,1780695032000,-209.82971037,0.00012731,2]
[424242959,1780695032000,-250.0,0.0001274,2]
[424242946,1780695032000,-237.0409655,0.00012724,2]
[424242915,1780695032000,-773.11,0.0001256,2]
[424242944,1780695032000,-1469.11120254,0.000127,2]
[424242936,1780695032000,-29872.44366867,0.000127,2]
[424242940,1780695032000,-1689.46618855,0.000127,2]
[424242942,1780695032000,-182.31580194,0.000127,2]
[424242938,1780695032000,-153.21596416,0.000127,2]
[424242927,1780695032000,-500.0,0.00012699,2]
[424242934,1780695032000,-9086.48604483,0.000127,2]
[424242925,1780695032000,-196.59423513,0.00012699,2]
[424242923,1780695032000,-500.0,0.00012699,2]
[424242921,1780695032000,-395.58612539,0.00012699,2]
[424242912,1780695032000,-222.85,0.00012329,2]
[424242913,1780695032000,-167.79157148,0.00012329,2]
[424242911,1780695032000,-773.11,0.00012254,2]
[424242929,1780695032000,-541.68342717,0.00012699,2]
[424242994,1780695038000,-301.44245081,0.00012741,2]
[424242995,1780695038000,-3998.71600123,0.00012741,2]
[424243227,1780695040000,-301.45971761,0.00012741,2]
[424243224,1780695040000,-3185.8786834,0.00012741,2]
[424243263,1780695040000,-324.62687092,0.00012741,2]
[424243271,1780695040000,-596.298,0.00012741,2]
[424243261,1780695040000,-13971.55272657,0.00012741,2]
[424243390,1780695041000,-52722.48180908,0.00012741,2]
[424243566,1780695043000,-3085.39861597,0.00012741,2]
[424243562,1780695043000,-651.50319232,0.00012741,2]
[424243561,1780695043000,-369.59444119,0.00012741,2]
[424243571,1780695046000,-16059.35740961,0.00012741,2]
[424243570,1780695046000,-364.4414,0.00012741,2]
[424243575,1780695444000,152.5,0.00030137,120]
[424243576,1780695453000,152.5,0.00030137,120]
[424243577,1780695457000,152.5,0.00030137,120]
[424243587,1780695868000,994.14,0.00030082,120]
[424243588,1780695878000,978.87547426,0.00025246,120]
[424243589,1780695879000,978.87547426,0.00025314,120]
[424243590,1780695879000,978.87547426,0.00025382,120]
[424243596,1780696012000,152.0,0.00029146,120]
[424243611,1780696140000,2000.0,0.00030136,120]
[424243614,1780696170000,-175.26703918,0.00010453,2]
[424243613,1780696170000,-232.9,0.00010453,2]
[424243621,1780696171000,-3.80141908,0.00010506,2]
[424243620,1780696171000,-276.58012857,0.00010506,2]
[424243619,1780696171000,-53.21855086,0.00010506,2]
[424243618,1780696171000,-150.0,0.00010506,2]
[424243617,1780696171000,-20.20132057,0.00010453,2]
[424243616,1780696171000,-205.423467,0.00010453,2]
[424243615,1780696171000,-158.54478925,0.00010453,2]
[424243623,1780696181000,152.60098935,0.00010506,2]
[424243716,1780696232000,-570.0,0.00011744,2]
[424243663,1780696232000,-570.0,0.00011566,2]
[424243670,1780696232000,-570.0,0.00011597,2]
[424243665,1780696232000,-570.0,0.0001158,2]
[424243672,1780696232000,-293.63,0.00011604,2]
[424243684,1780696232000,-200.01364449,0.00011655,2]
[424243686,1780696232000,-334.37,0.00011656,2]
[424243688,1780696232000,-420.78640974,0.00011662,2]
[424243690,1780696232000,-487.0,0.00011669,2]
[424243682,1780696232000,-570.0,0.00011655,2]
[424243676,1780696232000,-570.0,0.0001162,2]
[424243704,1780696232000,-487.0,0.00011707,2]
[424243692,1780696232000,-487.0,0.00011673,2]
[424243680,1780696232000,-570.0,0.00011637,2]
[424243678,1780696232000,-1230.52744482,0.00011623,2]
[424243674,1780696232000,-570.0,0.00011619,2]
[424243694,1780696232000,-163.320078,0.00011677,2]
[424243696,1780696232000,-570.0,0.00011688,2]
[424243698,1780696232000,-487.0,0.000117,2]
[424243708,1780696232000,-487.0,0.00011727,2]
[424243710,1780696232000,-487.0,0.00011728,2]
[424243700,1780696232000,-487.0,0.00011704,2]
[424243712,1780696232000,-487.0,0.00011736,2]
[424243706,1780696232000,-487.0,0.00011709,2]
[424243656,1780696232000,-570.0,0.00011513,2]
[424243667,1780696232000,-570.0,0.0001158,2]
[424243646,1780696232000,-500.0,0.00011068,2]
[424243657,1780696232000,-570.0,0.00011516,2]
[424243714,1780696232000,-487.0,0.00011737,2]
[424243634,1780696232000,-5684.52906978,0.00010406,2]
[424243635,1780696232000,-11.00901065,0.00010506,2]
[424243638,1780696232000,-282.73,0.00010717,2]
[424243640,1780696232000,-4774.37,0.00010804,2]
[424243636,1780696232000,-500.0,0.00010596,2]
[424243639,1780696232000,-448.18,0.00010766,2]
[424243637,1780696232000,-2926.93,0.000107,2]
[424243641,1780696232000,-2000.0,0.00010937,2]
[424243642,1780696232000,-150.0,0.00010959,2]
[424243644,1780696232000,-739.62,0.00010986,2]
[424243654,1780696232000,-2339.16,0.0001139,2]
[424243645,1780696232000,-2733.53,0.00011011,2]
[424243647,1780696232000,-500.0,0.00011099,2]
[424243643,1780696232000,-150.0,0.00010959,2]
[424243648,1780696232000,-200.0,0.000111,2]
[424243649,1780696232000,-322.3419758,0.00011141,2]
[424243652,1780696232000,-663.83414893,0.0001131,2]
[424243650,1780696232000,-566.08,0.00011212,2]
[424243651,1780696232000,-1979.52,0.00011263,2]
[424243653,1780696232000,-9098.43,0.00011311,2]
[424243655,1780696232000,-570.0,0.00011503,2]
[424243659,1780696232000,-1417.62,0.00011531,2]
[424243658,1780696232000,-255.0,0.00011525,2]
[424243660,1780696232000,-570.0,0.00011551,2]
[424243661,1780696232000,-570.0,0.00011555,2]
[424243702,1780696232000,-2011.95,0.00011705,2]
[424243736,1780696232000,-487.0,0.000118,2]
[424243723,1780696232000,-487.0,0.00011749,2]
[424243762,1780696232000,-6612.91,0.00011878,2]
[424243757,1780696232000,-1000.0,0.00011878,2]
[424243753,1780696232000,-487.0,0.00011863,2]
[424243759,1780696232000,-5714.18,0.00011878,2]
[424243760,1780696232000,-28528.26,0.00011878,2]
[424243756,1780696232000,-487.0,0.0001187,2]
[424243758,1780696232000,-999.99,0.00011878,2]
[424243754,1780696232000,-487.0,0.00011866,2]
[424243761,1780696232000,-353.69,0.00011878,2]
[424243755,1780696232000,-487.0,0.00011868,2]
[424243763,1780696232000,-150.99,0.00011878,2]
[424243751,1780696232000,-487.0,0.00011853,2]
[424243773,1780696232000,-230.97,0.00011899,2]
[424243772,1780696232000,-3631.07,0.00011899,2]
[424243764,1780696232000,-9999.99,0.00011878,2]
[424243766,1780696232000,-487.0,0.00011884,2]
[424243771,1780696232000,-24999.99,0.00011899,2]
[424243768,1780696232000,-487.0,0.0001189,2]